[Event "Weekend I 2025"]
[Site "Uppsala, Sweden"]
[Date "2025.06.27"]
[Round "1.23"]
[White "Myrberg, Rickard"]
[Black "Sundell, Johan"]
[Result "1-0"]
[TimeControl "90 min + increment of 30 sec starting move 1"]
[WhiteFideId "1709720"]
[BlackFideId "1796380"]
[WhiteElo "1825"]
[BlackElo "1853"]

1. e4 {[%clk 01:30:58]} {[%emt 00:00:01]} d6 {[%clk 01:30:46]} {[%emt
00:00:14]} 2. d4 {[%clk 01:31:12]} {[%emt 00:00:16]} Nf6 {[%clk 01:31:04]}
{[%emt 00:00:12]} 3. Nc3 {[%clk 01:31:39]} {[%emt 00:00:03]} g6 {[%clk
01:31:21]} {[%emt 00:00:13]} 4. Nf3 {[%clk 01:32:03]} {[%emt 00:00:07]} Bg7
{[%clk 01:31:18]} {[%emt 00:00:31]} 5. h3 {[%clk 01:32:28]} {[%emt 00:00:06]}
a6 {[%clk 01:31:11]} {[%emt 00:00:37]} 6. a4 {[%clk 01:32:45]} {[%emt
00:00:13]} b6 {[%clk 01:30:49]} {[%emt 00:00:52]} 7. Be3 {[%clk 01:32:04]}
{[%emt 00:01:11]} Bb7 {[%clk 01:28:50]} {[%emt 00:02:28]} 8. Bd3 {[%clk
01:20:49]} {[%emt 00:11:46]} c5 {[%clk 01:27:24]} {[%emt 00:01:55]} 9. e5
{[%clk 01:18:02]} {[%emt 00:03:19]} dxe5 {[%clk 01:22:40]} {[%emt 00:05:14]} 10.
dxe5 {[%clk 01:15:10]} {[%emt 00:03:21]} Nd5 {[%clk 01:20:22]} {[%emt
00:02:48]} 11. Bd2 {[%clk 01:09:00]} {[%emt 00:06:40]} O-O {[%clk 01:18:07]}
{[%emt 00:02:44]} 12. O-O {[%clk 01:09:15]} {[%emt 00:00:16]} Nc6 {[%clk
01:13:58]} {[%emt 00:04:38]} 13. Re1 {[%clk 01:07:12]} {[%emt 00:02:34]} Nc7
{[%clk 01:11:30]} {[%emt 00:02:57]} 14. Qc1 {[%clk 01:03:57]} {[%emt 00:03:46]}
Nd4 {[%clk 01:05:59]} {[%emt 00:06:00]} 15. Nh2 {[%clk 01:00:33]} {[%emt
00:03:55]} b5 {[%clk 01:03:51]} {[%emt 00:02:37]} 16. axb5 {[%clk 00:59:58]}
{[%emt 00:01:06]} axb5 {[%clk 01:04:04]} {[%emt 00:00:17]} 17. Rxa8 {[%clk
01:00:19]} {[%emt 00:00:09]} Qxa8 {[%clk 01:04:20]} {[%emt 00:00:13]} 18. Be4
{[%clk 00:57:56]} {[%emt 00:02:54]} Rd8 {[%clk 01:01:11]} {[%emt 00:03:38]} 19.
Bxb7 {[%clk 00:57:31]} {[%emt 00:00:56]} Qxb7 {[%clk 01:01:33]} {[%emt
00:00:09]} 20. Ng4 {[%clk 00:52:02]} {[%emt 00:05:58]} b4 {[%clk 00:56:48]}
{[%emt 00:05:15]} 21. Ne4 {[%clk 00:47:17]} {[%emt 00:05:15]} Qd5 {[%clk
00:51:57]} {[%emt 00:05:20]} 22. Bh6 {[%clk 00:43:42]} {[%emt 00:04:05]} Bxe5
{[%clk 00:49:48]} {[%emt 00:02:40]} 23. Nxe5 {[%clk 00:43:53]} {[%emt
00:00:18]} Qxe5 {[%clk 00:50:08]} {[%emt 00:00:11]} 24. Bf4 {[%clk 00:43:50]}
{[%emt 00:00:32]} Qh5 {[%clk 00:44:36]} {[%emt 00:06:01]} 25. Ng3 {[%clk
00:40:36]} {[%emt 00:03:45]} Qd5 {[%clk 00:43:37]} {[%emt 00:01:29]} 26. Bxc7
{[%clk 00:39:41]} {[%emt 00:01:27]} Rd7 {[%clk 00:43:57]} {[%emt 00:00:09]} 27.
Bf4 {[%clk 00:39:25]} {[%emt 00:00:45]} Qc4 {[%clk 00:43:57]} {[%emt 00:00:30]}
28. b3 {[%clk 00:33:55]} {[%emt 00:06:01]} Qb5 {[%clk 00:40:21]} {[%emt
00:04:06]} 29. Be3 {[%clk 00:33:34]} {[%emt 00:00:50]} e5 {[%clk 00:39:38]}
{[%emt 00:01:13]} 30. Bxd4 {[%clk 00:33:10]} {[%emt 00:00:54]} cxd4 {[%clk
00:39:51]} {[%emt 00:00:17]} 31. Ne4 {[%clk 00:32:50]} {[%emt 00:00:50]} Ra7
{[%clk 00:34:21]} {[%emt 00:06:00]} 32. Qg5 {[%clk 00:31:56]} {[%emt 00:01:25]}
Ra6 {[%clk 00:34:37]} {[%emt 00:00:14]} 33. Nf6+ {[%clk 00:31:08]} {[%emt
00:01:17]} Kg7 {[%clk 00:34:51]} {[%emt 00:00:16]} 34. Nh5+ {[%clk 00:30:00]}
{[%emt 00:01:39]} Kf8 {[%clk 00:34:01]} {[%emt 00:01:19]} 35. Qd8+ {[%clk
00:29:45]} {[%emt 00:00:46]} Qe8 {[%clk 00:34:21]} {[%emt 00:00:10]} 36. Qxe8+
{[%clk 00:29:57]} {[%emt 00:00:19]} Kxe8 {[%clk 00:34:45]} {[%emt 00:00:05]} 37.
Rxe5+ {[%clk 00:30:13]} {[%emt 00:00:14]} Kd7 {[%clk 00:34:59]} {[%emt
00:00:16]} 38. Rd5+ {[%clk 00:28:54]} {[%emt 00:01:49]} Kc6 {[%clk 00:35:01]}
{[%emt 00:00:27]} 39. Nf4 {[%clk 00:28:36]} {[%emt 00:00:49]} Ra1+ {[%clk
00:34:58]} {[%emt 00:00:32]} 40. Kh2 {[%clk 00:28:52]} {[%emt 00:00:15]} Rd1
{[%clk 00:35:18]} {[%emt 00:00:09]} 41. Rd8 {[%clk 00:28:24]} {[%emt 00:00:57]}
Rd2 {[%clk 00:34:52]} {[%emt 00:00:57]} 42. Nd3 {[%clk 00:28:25]} {[%emt
00:00:29]} Kc7 {[%clk 00:34:55]} {[%emt 00:00:27]} 43. Rxd4 {[%clk 00:28:42]}
{[%emt 00:00:14]} Rxc2 {[%clk 00:35:15]} {[%emt 00:00:09]} 44. Rxb4 {[%clk
00:28:27]} {[%emt 00:00:45]} Rd2 {[%clk 00:35:30]} {[%emt 00:00:16]} 45. Rd4
{[%clk 00:28:14]} {[%emt 00:00:43]} 1-0

[Event "Weekend I 2025"]
[Site "Uppsala, Sweden"]
[Date "2025.06.27"]
[Round "1.8"]
[White "Liefvendahl, Mattias"]
[Black "Gemzell, Ted"]
[Result "1-0"]
[TimeControl "90 min + increment of 30 sec starting move 1"]
[WhiteFideId "1722310"]
[BlackFideId "1727672"]
[WhiteElo "1991"]
[BlackElo "1947"]

1. d4 {[%clk 01:30:53]} {[%emt 00:00:06]} Nf6 {[%clk 01:30:48]} {[%emt
00:00:13]} 2. c4 {[%clk 01:30:58]} {[%emt 00:00:24]} c5 {[%clk 01:30:56]}
{[%emt 00:00:23]} 3. d5 {[%clk 01:30:43]} {[%emt 00:00:45]} b5 {[%clk
01:31:21]} {[%emt 00:00:05]} 4. cxb5 {[%clk 01:30:39]} {[%emt 00:00:33]} a6
{[%clk 01:31:46]} {[%emt 00:00:06]} 5. bxa6 {[%clk 01:30:27]} {[%emt 00:00:41]}
Bxa6 {[%clk 01:31:42]} {[%emt 00:00:35]} 6. Nc3 {[%clk 01:30:29]} {[%emt
00:00:28]} d6 {[%clk 01:32:07]} {[%emt 00:00:05]} 7. Nf3 {[%clk 01:30:17]}
{[%emt 00:00:41]} g6 {[%clk 01:31:37]} {[%emt 00:01:01]} 8. g3 {[%clk
01:30:39]} {[%emt 00:00:08]} Bg7 {[%clk 01:28:59]} {[%emt 00:03:08]} 9. Bg2
{[%clk 01:30:53]} {[%emt 00:00:15]} O-O {[%clk 01:27:59]} {[%emt 00:01:31]} 10.
O-O {[%clk 01:31:07]} {[%emt 00:00:15]} Nbd7 {[%clk 01:23:16]} {[%emt
00:05:15]} 11. Rb1 {[%clk 01:30:44]} {[%emt 00:00:52]} Nb6 {[%clk 01:20:49]}
{[%emt 00:02:57]} 12. b3 {[%clk 01:28:46]} {[%emt 00:02:27]} Ra7 {[%clk
01:17:55]} {[%emt 00:03:25]} 13. a4 {[%clk 01:22:59]} {[%emt 00:06:17]} Qa8
{[%clk 01:15:36]} {[%emt 00:02:49]} 14. Nh4 {[%clk 01:20:39]} {[%emt 00:02:49]}
Nfd7 {[%clk 01:12:57]} {[%emt 00:03:09]} 15. Qc2 {[%clk 01:18:21]} {[%emt
00:02:49]} Ne5 {[%clk 00:53:18]} {[%emt 00:20:08]} 16. h3 {[%clk 01:13:10]}
{[%emt 00:05:41]} c4 {[%clk 00:45:54]} {[%emt 00:07:56]} 17. b4 {[%clk
01:10:47]} {[%emt 00:02:51]} Bb7 {[%clk 00:46:10]} {[%emt 00:00:15]} 18. Be3
{[%clk 01:01:25]} {[%emt 00:09:51]} Nxa4 {[%clk 00:40:09]} {[%emt 00:06:31]} 19.
Bxa7 {[%clk 00:58:52]} {[%emt 00:03:03]} Nxc3 {[%clk 00:40:34]} {[%emt
00:00:06]} 20. Qxc3 {[%clk 00:56:30]} {[%emt 00:02:52]} Qxa7 {[%clk 00:40:59]}
{[%emt 00:00:05]} 21. Qc2 {[%clk 00:54:05]} {[%emt 00:02:54]} Rc8 {[%clk
00:40:42]} {[%emt 00:00:47]} 22. Nf3 {[%clk 00:43:48]} {[%emt 00:10:48]} Bxd5
{[%clk 00:36:14]} {[%emt 00:04:59]} 23. Nxe5 {[%clk 00:44:03]} {[%emt
00:00:14]} Bxg2 {[%clk 00:36:41]} {[%emt 00:00:03]} 24. Kxg2 {[%clk 00:44:16]}
{[%emt 00:00:17]} Bxe5 {[%clk 00:37:00]} {[%emt 00:00:10]} 25. b5 {[%clk
00:42:33]} {[%emt 00:02:14]} Qb7+ {[%clk 00:29:26]} {[%emt 00:08:04]} 26. Kg1
{[%clk 00:40:07]} {[%emt 00:02:55]} d5 {[%clk 00:27:48]} {[%emt 00:02:09]} 27.
e3 {[%clk 00:39:38]} {[%emt 00:00:59]} Bf6 {[%clk 00:24:17]} {[%emt 00:04:01]}
28. Qa4 {[%clk 00:37:05]} {[%emt 00:03:02]} Ra8 {[%clk 00:17:37]} {[%emt
00:07:11]} 29. Qb4 {[%clk 00:37:02]} {[%emt 00:00:32]} e6 {[%clk 00:17:59]}
{[%emt 00:00:08]} 30. Qc5 {[%clk 00:34:54]} {[%emt 00:02:38]} Be5 {[%clk
00:09:28]} {[%emt 00:09:01]} 31. b6 {[%clk 00:31:16]} {[%emt 00:04:08]} Rc8
{[%clk 00:09:25]} {[%emt 00:00:34]} 32. Qa5 {[%clk 00:30:36]} {[%emt 00:01:11]}
Kf8 {[%clk 00:05:37]} {[%emt 00:04:17]} 33. e4 {[%clk 00:22:55]} {[%emt
00:08:11]} c3 {[%clk 00:05:45]} {[%emt 00:00:23]} 34. exd5 {[%clk 00:21:35]}
{[%emt 00:01:50]} Qxd5 {[%clk 00:02:37]} {[%emt 00:03:38]} 35. b7 {[%clk
00:18:35]} {[%emt 00:03:29]} Rb8 {[%clk 00:02:49]} {[%emt 00:00:17]} 36. Rb5
{[%clk 00:17:24]} {[%emt 00:01:41]} Qd3 {[%clk 00:01:27]} {[%emt 00:01:54]} 37.
Rxe5 {[%clk 00:17:09]} {[%emt 00:00:44]} 1-0

[Event "Weekend I 2025"]
[Site "Uppsala, Sweden"]
[Date "2025.06.27"]
[Round "1.9"]
[White "Berntsson, Jonas"]
[Black "Britse, Klas"]
[Result "1-0"]
[TimeControl "90 min + increment of 30 sec starting move 1"]
[WhiteFideId "1729470"]
[BlackFideId "1768131"]
[WhiteElo "1936"]
[BlackElo "1990"]

1. d4 {[%clk 01:30:53]} {[%emt 00:00:07]} Nf6 {[%clk 01:30:48]} {[%emt
00:00:11]} 2. c4 {[%clk 01:31:14]} {[%emt 00:00:11]} e6 {[%clk 01:31:09]}
{[%emt 00:00:08]} 3. Nc3 {[%clk 01:31:28]} {[%emt 00:00:17]} Bb4 {[%clk
01:31:23]} {[%emt 00:00:15]} 4. Bd2 {[%clk 01:31:27]} {[%emt 00:00:30]} d5
{[%clk 01:29:45]} {[%emt 00:02:07]} 5. e3 {[%clk 01:30:49]} {[%emt 00:01:11]}
O-O {[%clk 01:29:13]} {[%emt 00:01:01]} 6. Nf3 {[%clk 01:30:23]} {[%emt
00:00:57]} b6 {[%clk 01:24:42]} {[%emt 00:05:00]} 7. Be2 {[%clk 01:22:31]}
{[%emt 00:08:22]} Bb7 {[%clk 01:22:55]} {[%emt 00:02:16]} 8. O-O {[%clk
01:20:19]} {[%emt 00:02:43]} Nbd7 {[%clk 01:20:02]} {[%emt 00:03:23]} 9. Rc1
{[%clk 01:11:40]} {[%emt 00:09:09]} c6 {[%clk 01:14:47]} {[%emt 00:05:44]} 10.
Nxd5 {[%clk 00:53:20]} {[%emt 00:18:52]} Nxd5 {[%clk 01:14:59]} {[%emt
00:00:18]} 11. cxd5 {[%clk 00:53:37]} {[%emt 00:00:13]} Bxd2 {[%clk 01:15:17]}
{[%emt 00:00:12]} 12. Qxd2 {[%clk 00:49:09]} {[%emt 00:04:58]} exd5 {[%clk
01:15:30]} {[%emt 00:00:17]} 13. b4 {[%clk 00:45:17]} {[%emt 00:04:21]} Re8
{[%clk 01:12:52]} {[%emt 00:03:07]} 14. Rc2 {[%clk 00:43:14]} {[%emt 00:02:34]}
Qe7 {[%clk 01:08:00]} {[%emt 00:05:21]} 15. Rfc1 {[%clk 00:42:40]} {[%emt
00:01:05]} Qd6 {[%clk 01:05:22]} {[%emt 00:03:07]} 16. Ne1 {[%clk 00:41:00]}
{[%emt 00:02:12]} Rac8 {[%clk 00:57:05]} {[%emt 00:08:45]} 17. a4 {[%clk
00:26:35]} {[%emt 00:14:57]} g6 {[%clk 00:46:39]} {[%emt 00:10:55]} 18. Ra2
{[%clk 00:20:35]} {[%emt 00:06:30]} Nf6 {[%clk 00:24:48]} {[%emt 00:22:21]} 19.
Bd3 {[%clk 00:17:43]} {[%emt 00:03:22]} c5 {[%clk 00:20:16]} {[%emt 00:05:03]}
20. bxc5 {[%clk 00:16:40]} {[%emt 00:01:33]} bxc5 {[%clk 00:20:38]} {[%emt
00:00:08]} 21. Rb1 {[%clk 00:16:51]} {[%emt 00:00:19]} Re7 {[%clk 00:18:54]}
{[%emt 00:02:13]} 22. Rab2 {[%clk 00:16:42]} {[%emt 00:00:39]} Rcc7 {[%clk
00:17:58]} {[%emt 00:01:26]} 23. Qa5 {[%clk 00:12:24]} {[%emt 00:04:49]} c4
{[%clk 00:16:25]} {[%emt 00:02:02]} 24. Bc2 {[%clk 00:12:40]} {[%emt 00:00:14]}
Bc8 {[%clk 00:16:21]} {[%emt 00:00:34]} 25. Nf3 {[%clk 00:12:30]} {[%emt
00:00:40]} Kg7 {[%clk 00:10:11]} {[%emt 00:06:40]} 26. Qc3 {[%clk 00:09:10]}
{[%emt 00:03:50]} Ng4 {[%clk 00:09:05]} {[%emt 00:01:36]} 27. h3 {[%clk
00:09:04]} {[%emt 00:00:36]} Nh6 {[%clk 00:09:27]} {[%emt 00:00:08]} 28. Ne5
{[%clk 00:08:30]} {[%emt 00:01:05]} f6 {[%clk 00:09:08]} {[%emt 00:00:48]} 29.
Nf3 {[%clk 00:08:51]} {[%emt 00:00:09]} Bf5 {[%clk 00:08:44]} {[%emt 00:00:54]}
30. Bxf5 {[%clk 00:07:52]} {[%emt 00:01:29]} Nxf5 {[%clk 00:09:06]} {[%emt
00:00:08]} 31. Rb5 {[%clk 00:07:46]} {[%emt 00:00:36]} a6 {[%clk 00:06:26]}
{[%emt 00:03:11]} 32. Rb8 {[%clk 00:07:05]} {[%emt 00:01:10]} Rc6 {[%clk
00:05:31]} {[%emt 00:01:26]} 33. a5 {[%clk 00:07:08]} {[%emt 00:00:27]} Rec7
{[%clk 00:05:28]} {[%emt 00:00:32]} 34. Ne1 {[%emt 00:00:32]} Qd7 {[%clk
00:05:05]} {[%emt 00:00:50]} 35. Nc2 {[%clk 00:06:30]} {[%emt 00:01:09]} Nd6
{[%clk 00:04:57]} {[%emt 00:00:38]} 36. Nb4 {[%clk 00:05:05]} {[%emt 00:01:56]}
Nb5 {[%clk 00:05:13]} {[%emt 00:00:13]} 37. Qc2 {[%clk 00:04:47]} {[%emt
00:00:48]} Re6 {[%clk 00:04:49]} {[%emt 00:00:54]} 38. Qa4 {[%clk 00:03:47]}
{[%emt 00:01:31]} Rc8 {[%clk 00:01:10]} {[%emt 00:04:08]} 39. Nxa6 {[%clk
00:03:40]} {[%emt 00:00:38]} Rxa6 {[%clk 00:01:19]} {[%emt 00:00:21]} 40. Rxc8
{[%clk 00:02:58]} {[%emt 00:01:12]} Qxc8 {[%clk 00:01:41]} {[%emt 00:00:08]} 41.
Qxb5 {[%clk 00:03:14]} {[%emt 00:00:14]} c3 {[%clk 00:01:21]} {[%emt 00:00:50]}
42. Qb7+ {[%clk 00:02:45]} {[%emt 00:00:59]} Qxb7 {[%clk 00:01:43]} {[%emt
00:00:08]} 43. Rxb7+ {[%clk 00:03:11]} {[%emt 00:00:04]} Kh6 {[%clk 00:02:01]}
{[%emt 00:00:12]} 44. Rc7 {[%clk 00:03:35]} {[%emt 00:00:06]} Rxa5 {[%clk
00:02:06]} {[%emt 00:00:25]} 45. Rxc3 {[%clk 00:03:58]} {[%emt 00:00:07]} Kg5
{[%clk 00:02:14]} {[%emt 00:00:21]} 46. g3 {[%clk 00:02:55]} {[%emt 00:01:33]}
Kf5 {[%clk 00:02:26]} {[%emt 00:00:18]} 47. Kg2 {[%clk 00:03:14]} {[%emt
00:00:11]} h5 {[%clk 00:02:08]} {[%emt 00:00:48]} 48. Kf3 {[%clk 00:03:22]}
{[%emt 00:00:22]} Ra2 {[%clk 00:02:22]} {[%emt 00:00:16]} 49. Rc6 {[%clk
00:03:10]} {[%emt 00:00:42]} g5 {[%clk 00:02:21]} {[%emt 00:00:32]} 50. g4+
{[%clk 00:03:29]} {[%emt 00:00:10]} hxg4+ {[%clk 00:02:41]} {[%emt 00:00:10]}
51. hxg4+ {[%clk 00:03:55]} {[%emt 00:00:04]} Kg6 {[%clk 00:03:02]} {[%emt
00:00:09]} 52. Rc5 {[%clk 00:04:16]} {[%emt 00:00:09]} 1-0

[Event "Weekend I 2025"]
[Site "Uppsala, Sweden"]
[Date "2025.06.27"]
[Round "1.10"]
[White "Dingertz, Gustav"]
[Black "Carlfors, Viktor"]
[Result "0-1"]
[TimeControl "90 min + increment of 30 sec starting move 1"]
[WhiteFideId "1767917"]
[BlackFideId "1740725"]
[WhiteElo "1983"]
[BlackElo "1932"]

1. d4 {[%clk 01:30:55]} {[%emt 00:00:04]} d5 {[%clk 01:30:33]} {[%emt
00:00:28]} 2. c4 {[%clk 01:31:16]} {[%emt 00:00:08]} c6 {[%clk 01:30:58]}
{[%emt 00:00:06]} 3. Nf3 {[%clk 01:31:39]} {[%emt 00:00:06]} Nf6 {[%clk
01:31:17]} {[%emt 00:00:12]} 4. Nc3 {[%clk 01:32:00]} {[%emt 00:00:08]} dxc4
{[%clk 01:31:10]} {[%emt 00:00:39]} 5. a4 {[%clk 01:31:58]} {[%emt 00:00:31]}
Bf5 {[%clk 01:31:28]} {[%emt 00:00:13]} 6. Ne5 {[%clk 01:32:08]} {[%emt
00:00:19]} Nbd7 {[%clk 01:30:14]} {[%emt 00:01:44]} 7. Nxc4 {[%clk 01:31:35]}
{[%emt 00:01:03]} Nb6 {[%clk 01:30:33]} {[%emt 00:00:11]} 8. Ne5 {[%clk
01:31:21]} {[%emt 00:00:43]} e6 {[%clk 01:26:10]} {[%emt 00:04:54]} 9. f3
{[%clk 01:26:36]} {[%emt 00:05:14]} Nfd7 {[%clk 01:24:25]} {[%emt 00:02:16]} 10.
Nxd7 {[%clk 01:25:55]} {[%emt 00:01:11]} Nxd7 {[%clk 01:22:37]} {[%emt
00:02:19]} 11. e4 {[%clk 01:26:00]} {[%emt 00:00:23]} Bg6 {[%clk 01:23:01]}
{[%emt 00:00:07]} 12. Be3 {[%clk 01:22:26]} {[%emt 00:04:03]} Bb4 {[%clk
01:19:16]} {[%emt 00:04:17]} 13. Be2 {[%clk 01:20:10]} {[%emt 00:02:43]} O-O
{[%clk 01:19:04]} {[%emt 00:00:44]} 14. O-O {[%clk 01:20:18]} {[%emt 00:00:21]}
Ba5 {[%clk 01:08:14]} {[%emt 00:11:21]} 15. Nb1 {[%clk 01:01:03]} {[%emt
00:19:45]} Qe7 {[%clk 00:56:29]} {[%emt 00:12:15]} 16. Na3 {[%clk 00:56:10]}
{[%emt 00:05:23]} Rfd8 {[%clk 00:51:05]} {[%emt 00:05:53]} 17. Nc4 {[%clk
00:54:13]} {[%emt 00:02:28]} Bc7 {[%clk 00:51:15]} {[%emt 00:00:21]} 18. Bf2
{[%clk 00:49:59]} {[%emt 00:04:42]} f6 {[%clk 00:28:35]} {[%emt 00:23:11]} 19.
a5 {[%clk 00:44:26]} {[%emt 00:06:03]} a6 {[%clk 00:27:55]} {[%emt 00:01:11]}
20. Qb3 {[%clk 00:42:58]} {[%emt 00:01:57]} Rab8 {[%clk 00:27:07]} {[%emt
00:01:19]} 21. Rfd1 {[%clk 00:38:50]} {[%emt 00:04:36]} Bf7 {[%clk 00:24:35]}
{[%emt 00:03:03]} 22. Ne3 {[%clk 00:36:44]} {[%emt 00:02:35]} Nf8 {[%clk
00:18:42]} {[%emt 00:06:24]} 23. Bc4 {[%clk 00:33:27]} {[%emt 00:03:45]} Ng6
{[%clk 00:13:49]} {[%emt 00:05:25]} 24. g3 {[%clk 00:29:22]} {[%emt 00:04:32]}
Rd7 {[%clk 00:11:32]} {[%emt 00:02:50]} 25. Kg2 {[%clk 00:25:18]} {[%emt
00:04:33]} Rbd8 {[%clk 00:06:39]} {[%emt 00:05:23]} 26. Nc2 {[%clk 00:21:23]}
{[%emt 00:04:26]} Bb8 {[%clk 00:05:39]} {[%emt 00:01:30]} 27. Rd3 {[%clk
00:14:17]} {[%emt 00:07:35]} Ba7 {[%clk 00:03:54]} {[%emt 00:02:17]} 28. Rad1
{[%clk 00:14:26]} {[%emt 00:00:19]} e5 {[%clk 00:01:36]} {[%emt 00:02:49]} 29.
d5 {[%clk 00:08:17]} {[%emt 00:06:39]} cxd5 {[%clk 00:01:00]} {[%emt 00:01:07]}
30. exd5 {[%clk 00:08:12]} {[%emt 00:00:34]} Bxf2 {[%clk 00:01:16]} {[%emt
00:00:14]} 31. d6 {[%clk 00:08:02]} {[%emt 00:00:41]} Qe8 {[%clk 00:01:21]}
{[%emt 00:00:24]} 32. Kxf2 {[%clk 00:08:20]} {[%emt 00:00:12]} Bxc4 {[%clk
00:00:46]} {[%emt 00:01:06]} 33. Qxc4+ {[%clk 00:08:43]} {[%emt 00:00:06]} Qf7
{[%clk 00:01:10]} {[%emt 00:00:07]} 34. Ne3 {[%clk 00:08:07]} {[%emt 00:01:05]}
Nf8 {[%clk 00:01:17]} {[%emt 00:00:24]} 35. f4 {[%clk 00:02:20]} {[%emt
00:06:17]} exf4 {[%clk 00:00:38]} {[%emt 00:01:08]} 36. Qxf4 {[%clk 00:02:01]}
{[%emt 00:00:49]} Ng6 {[%clk 00:00:50]} {[%emt 00:00:19]} 37. Qb4 {[%clk
00:01:11]} {[%emt 00:01:19]} Ne5 {[%clk 00:01:07]} {[%emt 00:00:13]} 38. Rd5
{[%clk 00:01:07]} {[%emt 00:00:34]} Qe6 {[%clk 00:01:05]} {[%emt 00:00:32]} 39.
Kg2 {[%clk 00:00:38]} {[%emt 00:00:59]} Nc6 {[%clk 00:01:13]} {[%emt 00:00:22]}
40. Qd2 {[%clk 00:00:59]} {[%emt 00:00:09]} Ne5 {[%clk 00:00:41]} {[%emt
00:01:03]} 41. Nc2 {[%clk 00:00:36]} {[%emt 00:00:53]} Nc4 {[%clk 00:00:47]}
{[%emt 00:00:23]} 42. Qd3 {[%clk 00:00:39]} {[%emt 00:00:26]} Nxb2 {[%clk
00:00:37]} {[%emt 00:00:41]} 43. Qb3 {[%clk 00:00:32]} {[%emt 00:00:38]} Nxd1
{[%clk 00:00:53]} {[%emt 00:00:13]} 0-1

[Event "Weekend I 2025"]
[Site "Uppsala, Sweden"]
[Date "2025.06.27"]
[Round "1.11"]
[White "Kjetselberg, Mattias"]
[Black "Larsson, Max"]
[Result "0-1"]
[TimeControl "90 min + increment of 30 sec starting move 1"]
[WhiteFideId "1794728"]
[BlackFideId "1786989"]
[WhiteElo "1930"]
[BlackElo "1971"]

1. d4 {[%clk 01:30:53]} {[%emt 00:00:06]} d5 {[%clk 01:30:53]} {[%emt
00:00:08]} 2. Nf3 {[%clk 01:31:11]} {[%emt 00:00:12]} Nf6 {[%clk 01:31:16]}
{[%emt 00:00:07]} 3. Bg5 {[%clk 01:31:27]} {[%emt 00:00:13]} Ne4 {[%clk
01:31:16]} {[%emt 00:00:31]} 4. Bh4 {[%clk 01:31:14]} {[%emt 00:00:43]} h5
{[%clk 01:29:27]} {[%emt 00:02:19]} 5. Nbd2 {[%clk 01:30:03]} {[%emt 00:01:39]}
f6 {[%clk 01:29:09]} {[%emt 00:00:49]} 6. e3 {[%clk 01:27:28]} {[%emt
00:03:06]} g5 {[%clk 01:29:08]} {[%emt 00:00:31]} 7. Nxe4 {[%clk 01:27:29]}
{[%emt 00:00:28]} dxe4 {[%clk 01:28:30]} {[%emt 00:01:09]} 8. Nxg5 {[%clk
01:27:30]} {[%emt 00:00:29]} fxg5 {[%clk 01:28:25]} {[%emt 00:00:35]} 9. Bxg5
{[%clk 01:27:29]} {[%emt 00:00:31]} Qd5 {[%clk 01:25:56]} {[%emt 00:02:59]} 10.
h4 {[%clk 01:27:41]} {[%emt 00:00:17]} Bg4 {[%clk 01:23:10]} {[%emt 00:03:16]}
11. Be2 {[%clk 01:27:42]} {[%emt 00:00:30]} Bxe2 {[%clk 01:21:43]} {[%emt
00:01:58]} 12. Qxe2 {[%clk 01:28:03]} {[%emt 00:00:08]} Nd7 {[%clk 01:18:28]}
{[%emt 00:03:45]} 13. a3 {[%clk 01:23:59]} {[%emt 00:04:34]} Nf6 {[%clk
01:12:42]} {[%emt 00:06:15]} 14. c4 {[%clk 01:12:02]} {[%emt 00:12:28]} Qf5
{[%clk 01:12:59]} {[%emt 00:00:13]} 15. Bf4 {[%clk 01:02:26]} {[%emt 00:10:06]}
O-O-O {[%clk 01:11:49]} {[%emt 00:01:40]} 16. b4 {[%clk 00:59:29]} {[%emt
00:03:27]} Rg8 {[%clk 01:11:28]} {[%emt 00:00:52]} 17. Bg3 {[%clk 00:57:02]}
{[%emt 00:02:56]} Bh6 {[%clk 01:10:25]} {[%emt 00:01:33]} 18. Rh3 {[%clk
00:48:36]} {[%emt 00:08:55]} Ng4 {[%clk 01:07:17]} {[%emt 00:03:38]} 19. a4
{[%clk 00:47:22]} {[%emt 00:01:45]} Rg6 {[%clk 01:05:14]} {[%emt 00:02:33]} 20.
a5 {[%clk 00:42:14]} {[%emt 00:05:38]} Rdg8 {[%clk 01:03:44]} {[%emt 00:02:00]}
21. Ra3 {[%clk 00:42:25]} {[%emt 00:00:19]} a6 {[%clk 00:51:27]} {[%emt
00:12:47]} 22. b5 {[%clk 00:35:32]} {[%emt 00:07:23]} axb5 {[%clk 00:47:43]}
{[%emt 00:04:14]} 23. cxb5 {[%clk 00:31:08]} {[%emt 00:04:53]} Qd5 {[%clk
00:44:16]} {[%emt 00:03:57]} 24. a6 {[%clk 00:28:57]} {[%emt 00:02:42]} bxa6
{[%clk 00:43:55]} {[%emt 00:00:51]} 25. bxa6 {[%clk 00:29:07]} {[%emt
00:00:21]} Kd7 {[%clk 00:43:29]} {[%emt 00:00:55]} 26. a7 {[%clk 00:25:37]}
{[%emt 00:04:00]} Rb6 {[%clk 00:41:11]} {[%emt 00:02:46]} 27. Qc2 {[%clk
00:24:58]} {[%emt 00:01:10]} Qb7 {[%clk 00:38:20]} {[%emt 00:03:21]} 28. Qa4+
{[%clk 00:20:22]} {[%emt 00:05:07]} c6 {[%clk 00:37:57]} {[%emt 00:00:52]} 29.
Ra1 {[%clk 00:09:36]} {[%emt 00:11:17]} Rb1+ {[%clk 00:37:01]} {[%emt
00:01:27]} 30. Rxb1 {[%clk 00:09:56]} {[%emt 00:00:09]} Qxb1+ {[%clk 00:37:26]}
{[%emt 00:00:05]} 31. Kd2 {[%clk 00:09:59]} {[%emt 00:00:28]} Qd3+ {[%clk
00:35:46]} {[%emt 00:02:09]} 32. Kc1 {[%clk 00:10:19]} {[%emt 00:00:11]} Nxe3
{[%clk 00:35:28]} {[%emt 00:00:47]} 33. Bf4 {[%clk 00:05:25]} {[%emt 00:05:23]}
Bxf4 {[%clk 00:32:49]} {[%emt 00:03:09]} 34. Rxe3 {[%clk 00:05:11]} {[%emt
00:00:44]} Bxe3+ {[%clk 00:32:16]} {[%emt 00:01:05]} 35. fxe3 {[%clk 00:05:32]}
{[%emt 00:00:08]} Qf1+ {[%clk 00:31:32]} {[%emt 00:01:14]} 36. Kb2 {[%clk
00:05:43]} {[%emt 00:00:19]} Rxg2+ {[%clk 00:31:49]} {[%emt 00:00:13]} 37. Kc3
{[%clk 00:06:04]} {[%emt 00:00:08]} Qd3+ {[%clk 00:31:02]} {[%emt 00:01:17]} 38.
Kb4 {[%clk 00:06:25]} {[%emt 00:00:10]} Rb2+ {[%clk 00:31:17]} {[%emt
00:00:14]} 39. Ka5 {[%clk 00:06:47]} {[%emt 00:00:09]} Rb5+ {[%clk 00:29:43]}
{[%emt 00:02:03]} 40. Ka6 {[%clk 00:07:06]} {[%emt 00:00:12]} Rb4+ {[%clk
00:29:55]} {[%emt 00:00:18]} 41. Ka5 {[%clk 00:07:21]} {[%emt 00:00:15]} Rxa4+
{[%clk 00:30:14]} {[%emt 00:00:11]} 0-1